bitfinex/quotes_BTCUSD_20240905
["timestamp","ask_amount","ask_price","bid_price","bid_amount"]
[1725496934443,1.75951342,58252.0,58251.0,0.00204]
[1725496934675,1.76951342,58252.0,58251.0,0.00204]
[1725496936923,1.75951342,58252.0,58251.0,0.00204]
[1725496937151,1.50917842,58252.0,58251.0,0.00204]
[1725496938302,1.44687842,58252.0,58251.0,0.00204]
[1725496940199,1.50807842,58252.0,58251.0,0.00204]
[1725496940439,1.74841342,58252.0,58251.0,0.00204]
[1725496940676,1.8808626,58252.0,58251.0,0.00204]
[1725496940901,1.8828626,58252.0,58251.0,0.00204]
[1725496942782,1.8808626,58252.0,58251.0,0.00204]
[1725496942999,1.74841342,58252.0,58251.0,0.00204]
[1725496947692,1.8009626,58252.0,58251.0,0.00204]
[1725496952237,1.8029626,58252.0,58251.0,0.00204]
[1725496954630,1.8009626,58252.0,58251.0,0.00204]
[1725496955111,1.8029626,58252.0,58251.0,0.00204]
[1725496955820,1.8009626,58252.0,58251.0,0.00204]
[1725496956074,1.8109626,58252.0,58251.0,0.00204]
[1725496956277,1.8129626,58252.0,58251.0,0.00204]
[1725496956483,1.8229626,58252.0,58251.0,0.00204]
[1725496958055,1.74841342,58252.0,58251.0,0.00204]
[1725496958275,1.63378971,58252.0,58251.0,0.00204]
[1725496958715,1.37045471,58252.0,58251.0,0.00204]
[1725496959194,1.22689561,58252.0,58251.0,0.08474]
[1725496959421,1.22689561,58252.0,58251.0,0.14554]
[1725496959422,1.33353483,58252.0,58251.0,0.14554]
[1725496961208,1.35653483,58252.0,58251.0,0.14554]
[1725496964888,1.08930132,58252.0,58251.0,0.14554]
[1725496965378,1.32963632,58252.0,58251.0,0.14554]
[1725496971493,1.32963632,58252.0,58251.0,0.08474]
[1725496974387,0.841403,58236.0,58235.0,0.00164]
[1725496974651,1.0046986,58236.0,58235.0,0.00164]
[1725496974889,1.1276986,58236.0,58235.0,0.00164]
[1725496975132,1.15460372,58236.0,58235.0,0.00164]
[1725496975612,1.1046986,58236.0,58235.0,0.00164]
[1725496975858,0.80764122,58236.0,58235.0,0.00164]
[1725496976105,0.80864122,58236.0,58235.0,0.00164]
[1725496976529,0.8141534,58236.0,58235.0,0.00164]
[1725496977042,0.8141534,58236.0,58235.0,0.07744]
[1725496977457,0.8141534,58236.0,58235.0,0.14244]
[1725496978802,1.4141534,58236.0,58235.0,0.14244]
[1725496979241,1.6545544,58236.0,58235.0,0.14244]
[1725496979715,1.6545544,58236.0,58235.0,0.07744]
[1725496983169,1.6545544,58236.0,58235.0,0.00164]
[1725496983170,1.71121078,58236.0,58235.0,0.00164]
[1725496983405,1.79139519,58236.0,58235.0,0.00164]
[1725496983661,1.76447079,58236.0,58235.0,0.00164]
[1725496984319,1.76547079,58236.0,58235.0,0.00164]
[1725496984542,1.79237555,58236.0,58235.0,0.00164]
[1725496984783,1.79137555,58236.0,58235.0,0.00164]
[1725496985001,1.79037555,58236.0,58235.0,0.00164]
[1725496985222,1.79137555,58236.0,58235.0,0.00764]
[1725496985657,1.79237555,58236.0,58235.0,0.00764]
[1725496985877,1.76547079,58236.0,58235.0,0.00764]
[1725496986388,1.79237587,58236.0,58235.0,0.00764]
[1725496986606,1.76547079,58236.0,58235.0,0.00764]
[1725496989092,1.71221078,58236.0,58235.0,0.00764]
[1725497001881,1.47180978,58236.0,58235.0,0.00764]
[1725497002352,1.71221078,58236.0,58235.0,0.00764]
[1725497003268,1.47180978,58236.0,58235.0,0.00764]
[1725497003487,1.4151534,58236.0,58235.0,0.00764]
[1725497003726,1.6555544,58236.0,58235.0,0.00764]
[1725497004634,1.4151534,58236.0,58235.0,0.00764]
[1725497006167,1.4151534,58236.0,58235.0,0.06934]
[1725497006608,1.44205705,58236.0,58235.0,0.06934]
[1725497007316,1.44205705,58236.0,58235.0,0.00764]
[1725497007933,1.4151534,58236.0,58235.0,0.00764]
[1725497008189,1.44205704,58236.0,58235.0,0.00764]
[1725497008622,1.46898148,58236.0,58235.0,0.00764]
[1725497008838,1.44205704,58236.0,58235.0,0.00764]
[1725497012197,1.68245804,58236.0,58235.0,0.00764]
[1725497012895,1.44205704,58236.0,58235.0,0.00764]
[1725497014907,1.68245804,58236.0,58235.0,0.00764]
[1725497017412,1.44205704,58236.0,58235.0,0.00764]
[1725497017850,1.68245804,58236.0,58235.0,0.00764]
[1725497018268,1.44205704,58236.0,58235.0,0.00764]
[1725497018487,1.68245804,58236.0,58235.0,0.00764]
[1725497019386,1.44205704,58236.0,58235.0,0.00764]
[1725497021216,1.70938244,58236.0,58235.0,0.00764]
[1725497021408,1.68245804,58236.0,58235.0,0.00764]
[1725497022597,1.44205704,58236.0,58235.0,0.00764]
[1725497023011,1.68245804,58236.0,58235.0,0.00764]
[1725497026473,1.33541782,58236.0,58235.0,0.00764]
[1725497026690,1.44205704,58236.0,58235.0,0.00764]
[1725497027373,1.68245804,58236.0,58235.0,0.00764]
[1725497028669,1.44205704,58236.0,58235.0,0.00764]
[1725497029312,1.68245804,58236.0,58235.0,0.00764]
[1725497029784,1.7093825,58236.0,58235.0,0.00764]
[1725497030243,1.68245804,58236.0,58235.0,0.00764]
[1725497045209,1.74525804,58236.0,58235.0,0.00764]
[1725497045487,2.1998757,58236.0,58235.0,0.00764]
[1725497045712,2.2268013,58236.0,58235.0,0.00764]
[1725497046641,2.03558464,58236.0,58235.0,0.00764]
[1725497047112,1.09501682,58236.0,58235.0,0.00764]
[1725497047322,1.33541782,58236.0,58235.0,0.09034]
[1725497048271,1.57581882,58236.0,58235.0,0.00764]
[1725497048486,1.74713548,58236.0,58235.0,0.00764]
[1725497049599,1.77013548,58236.0,58235.0,0.00764]
[1725497050044,1.41445024,58236.0,58235.0,0.00764]
[1725497050255,1.80195718,58236.0,58235.0,0.00764]
[1725497052032,1.90195718,58236.0,58235.0,0.00764]
[1725497052912,1.6083728,58236.0,58235.0,0.00764]
[1725497053364,1.61379109,58236.0,58235.0,0.00764]
[1725497056989,1.55239109,58236.0,58235.0,0.00764]
[1725497057466,1.31199009,58236.0,58235.0,0.00764]
[1725497060023,1.33889356,58236.0,58235.0,0.00764]
[1725497061412,1.31199009,58236.0,58235.0,0.00764]
[1725497062811,1.31280609,58236.0,58235.0,0.00764]
[1725497063208,1.33970897,58236.0,58235.0,0.00764]
[1725497065275,1.31280609,58236.0,58235.0,0.00764]
[1725497065914,1.33970924,58236.0,58235.0,0.00764]
[1725497070329,1.31280609,58236.0,58235.0,0.00764]
[1725497070533,1.33970909,58236.0,58235.0,0.00764]
[1725497072518,1.58011009,58236.0,58235.0,0.00764]
[1725497072947,1.64661009,58236.0,58235.0,0.00764]
[1725497073203,1.66961009,58236.0,58235.0,0.00764]
[1725497075478,1.60311009,58236.0,58235.0,0.00764]
[1725497075689,1.55320709,58236.0,58235.0,0.00764]
[1725497077744,1.20616687,58236.0,58235.0,0.00764]
[1725497077965,1.31280609,58236.0,58235.0,0.00764]
[1725497087685,1.33970877,58236.0,58235.0,0.00764]
[1725497087928,0.96576587,58236.0,58235.0,0.08714]
[1725497089587,0.96576587,58236.0,58235.0,0.12055999]
[1725497090994,1.20616687,58236.0,58235.0,0.12055999]
[1725497091451,1.20616687,58236.0,58235.0,0.08714]
[1725497091906,1.2330904,58236.0,58235.0,0.08714]
[1725497092150,1.31280609,58236.0,58235.0,0.08714]
[1725497094061,1.31280609,58236.0,58235.0,0.00764]
[1725497100211,1.31280609,58236.0,58235.0,0.00719754]
[1725497101831,1.31280609,58236.0,58235.0,0.15279754]
[1725497101832,0.50516487,58236.0,58235.0,0.15279754]
[1725497102061,0.50516487,58236.0,58235.0,0.91185068]
[1725497102062,0.49974658,58236.0,58235.0,0.91185068]
[1725497102301,0.49974658,58236.0,58235.0,0.89386875]
[1725497102801,0.49974658,58236.0,58235.0,0.97097163]
[1725497103021,0.49974658,58236.0,58235.0,1.27514569]
[1725497103252,0.49974658,58236.0,58235.0,1.40365049]
[1725497103509,0.49974658,58236.0,58235.0,1.51555069]
[1725497103738,0.49974658,58236.0,58235.0,1.51755069]
[1725497103972,0.49974658,58236.0,58235.0,1.53361595]
[1725497104194,0.49974658,58236.0,58235.0,0.94416673]
[1725497104428,0.49974658,58236.0,58235.0,0.56749447]
[1725497104656,0.49974658,58236.0,58235.0,0.81598476]
[1725497104873,0.49974658,58236.0,58235.0,0.68769647]
[1725497105324,0.49974658,58236.0,58235.0,1.29869181]
[1725497105548,0.49974658,58236.0,58235.0,1.17050647]
[1725497105790,0.49974658,58236.0,58235.0,1.16850647]
[1725497106908,0.49974658,58236.0,58235.0,1.40891147]
[1725497107348,0.49974658,58236.0,58235.0,1.53700117]
[1725497107570,0.49974658,58236.0,58235.0,1.53899565]
[1725497107801,0.49974658,58236.0,58235.0,1.41091147]
[1725497109175,0.49874658,58236.0,58235.0,1.40484833]
[1725497109641,0.49874658,58236.0,58235.0,1.41884833]
[1725497109872,0.49974658,58236.0,58235.0,1.43284833]
[1725497110964,0.49974658,58236.0,58235.0,1.44284833]
[1725497111431,0.49974658,58236.0,58235.0,1.57079466]
[1725497111880,0.49974658,58236.0,58235.0,1.44284833]
[1725497112341,0.49974658,58236.0,58235.0,1.57081436]
[1725497112579,0.49974658,58236.0,58235.0,1.5708057]
[1725497112799,0.49974658,58236.0,58235.0,1.65186717]
[1725497113519,0.49974658,58236.0,58235.0,1.67744492]
[1725497113762,0.49974658,58236.0,58235.0,1.65192119]
[1725497114006,0.49974658,58236.0,58235.0,1.54947981]
[1725497114226,0.49974658,58236.0,58235.0,1.65194244]
[1725497114441,0.49974658,58236.0,58235.0,1.64994244]
[1725497115427,0.49974658,58236.0,58235.0,1.54947981]
[1725497116152,0.49974658,58236.0,58235.0,1.61431869]
[1725497116397,0.49974658,58236.0,58235.0,1.15627375]
[1725497116627,0.49974658,58236.0,58235.0,1.23311263]
[1725497116863,0.49974658,58236.0,58235.0,1.5374906]
[1725497117100,0.49974658,58236.0,58235.0,1.63994048]
[1725497117564,0.49974658,58236.0,58235.0,1.63991875]
[1725497117795,0.49974658,58236.0,58235.0,1.53748714]
[1725497118041,0.49974658,58236.0,58235.0,1.50768964]
[1725497118262,0.49974658,58236.0,58235.0,1.1264633]
[1725497118481,0.49974658,58236.0,58235.0,1.04963453]
[1725497119856,0.49974658,58236.0,58235.0,1.1008623]
[1725497120136,0.49974658,58236.0,58235.0,1.12647146]
[1725497120580,0.49974658,58236.0,58235.0,1.50969729]
[1725497120784,0.49974658,58236.0,58235.0,1.43286036]
[1725497121273,0.49974658,58236.0,58235.0,1.50969416]
[1725497121512,0.49974658,58236.0,58235.0,1.12846833]
[1725497122642,0.49974658,58236.0,58235.0,1.12847122]
[1725497122903,0.49974658,58236.0,58235.0,1.12647122]
[1725497123344,0.49974658,58236.0,58235.0,1.12644958]
[1725497123562,0.49974658,58236.0,58235.0,1.50767588]
[1725497124042,0.49974658,58236.0,58235.0,1.12644958]
[1725497124970,0.49974658,58236.0,58235.0,1.50969046]
[1725497125406,0.49974658,58236.0,58235.0,1.12846198]
[1725497125638,0.49974658,58236.0,58235.0,1.12846331]
[1725497126498,0.49974658,58236.0,58235.0,1.43286248]
[1725497127235,0.49974658,58236.0,58235.0,1.50969276]
[1725497127691,0.49974658,58236.0,58235.0,1.5453114]
[1725497128146,0.49974658,58236.0,58235.0,1.45893873]
[1725497128631,0.49974658,58236.0,58235.0,1.47179952]
[1725497128856,0.49974658,58236.0,58235.0,1.71220452]
[1725497129087,0.49974658,58236.0,58235.0,1.86026567]
[1725497129308,0.49974658,58236.0,58235.0,1.73220452]
[1725497129523,0.49974658,58236.0,58235.0,1.75793045]
[1725497130554,0.49974658,58236.0,58235.0,1.73220452]
[1725497131581,0.49974658,58236.0,58235.0,1.73020452]
[1725497131819,0.49974658,58236.0,58235.0,1.77851167]
[1725497132530,0.49974658,58236.0,58235.0,1.75278574]
[1725497132775,0.49974658,58236.0,58235.0,1.68591959]
[1725497132994,0.49974658,58236.0,58235.0,1.74505494]
[1725497133229,0.49974658,58236.0,58235.0,1.74505377]
[1725497133702,0.49974658,58236.0,58235.0,1.77848279]
[1725497134651,0.49974658,58236.0,58235.0,1.48657712]
[1725497134876,0.49974658,58236.0,58235.0,1.59321634]
[1725497135572,0.49974658,58236.0,58235.0,1.69555673]
[1725497135785,0.49974658,58236.0,58235.0,1.70841942]
[1725497136898,0.49974658,58236.0,58235.0,1.58036439]
[1725497137833,0.49974658,58236.0,58235.0,1.62216535]
[1725497138078,0.49974658,58236.0,58235.0,1.62416535]
[1725497138333,0.49974658,58236.0,58235.0,1.86457035]
[1725497138557,0.49974658,58236.0,58235.0,2.01824373]
[1725497138794,0.49974658,58236.0,58235.0,1.77783873]
[1725497139236,0.49974658,58236.0,58235.0,1.62416535]
[1725497139495,0.49974658,58236.0,58235.0,2.01824373]
[1725497139718,0.49974658,58236.0,58235.0,1.86457035]
[1725497141076,0.49974658,58236.0,58235.0,2.55196385]
[1725497142206,0.49974658,58236.0,58235.0,2.39829047]
[1725497146616,0.49974658,58236.0,58235.0,2.35648951]
[1725497146851,0.49974658,58236.0,58235.0,2.39829406]
[1725497147572,0.49974658,58236.0,58235.0,2.62520241]
[1725497148054,0.49974658,58236.0,58235.0,2.61288249]
[1725497149837,0.49974658,58236.0,58235.0,2.59680605]
[1725497150055,0.49974658,58236.0,58235.0,2.61288612]
[1725497150728,0.49974658,58236.0,58235.0,2.2638419]
[1725497150955,0.56564658,58236.0,58235.0,1.87069089]
[1725497151190,0.56564658,58236.0,58235.0,1.62028589]
[1725497151424,0.56564658,58236.0,58235.0,1.63028589]
[1725497151922,0.56564658,58236.0,58235.0,1.73692511]
[1725497152161,0.56484482,58236.0,58235.0,1.711197]
[1725497153113,0.30985142,58236.0,58235.0,1.41794366]
[1725497154023,0.30985142,58236.0,58235.0,1.41994366]
[1725497154249,0.30985142,58236.0,58235.0,1.43994366]
[1725497154250,0.24395142,58236.0,58235.0,1.43994366]
[1725497154928,0.24395142,58236.0,58235.0,1.43794366]
[1725497155151,0.24395142,58236.0,58235.0,1.43994366]
[1725497156264,0.24395142,58236.0,58235.0,1.42386049]
[1725497156486,0.24395142,58236.0,58235.0,1.43993717]
[1725497157143,0.24395142,58236.0,58235.0,1.43793717]
[1725497158250,0.30565142,58236.0,58235.0,1.43793717]
[1725497158670,0.30565142,58236.0,58235.0,0.82048795]
[1725497158868,0.30565142,58236.0,58235.0,0.56400627]
[1725497158869,0.38815142,58236.0,58235.0,0.56400627]
[1725497159226,0.38815142,58236.0,58235.0,0.66679207]
[1725497159427,0.38815142,58236.0,58235.0,0.55000627]
[1725497159658,0.38615142,58236.0,58235.0,0.53600627]
[1725497159877,0.38715142,58236.0,58235.0,0.55000627]
[1725497160356,0.38615142,58236.0,58235.0,0.53600627]
[1725497160777,0.38715142,58236.0,58235.0,0.55000627]
[1725497161002,0.38715142,58236.0,58235.0,0.79041127]
[1725497161216,0.38815142,58236.0,58235.0,0.80441127]
[1725497162339,0.38815142,58236.0,58235.0,0.90719707]
[1725497162981,0.38815142,58236.0,58235.0,0.80441127]
[1725497163190,0.30565142,58236.0,58235.0,1.15145549]
[1725497163427,0.24395142,58236.0,58235.0,1.40186049]
[1725497164720,0.0653,58238.0,58237.0,0.60099]
[1725497164929,0.0653,58238.0,58237.0,1.25598661]
[1725497165142,0.0653,58238.0,58237.0,1.38436947]
[1725497165413,0.083,58246.0,58244.0,0.120182]
[1725497165639,0.1446,58246.0,58245.0,0.05135481]
[1725497165891,0.1446,58246.0,58245.0,0.44528821]
[1725497166110,0.1446,58246.0,58245.0,0.1535704]
[1725497166533,0.1446,58246.0,58245.0,0.20492551]
[1725497166747,0.1456,58246.0,58245.0,0.21892551]
[1725497167391,0.1456,58246.0,58245.0,0.45928851]
[1725497167849,0.1456,58246.0,58245.0,0.21892551]
[1725497168469,0.1466,58246.0,58245.0,0.23292551]
[1725497169113,0.0636,58246.0,58245.0,0.47328851]
[1725497169350,0.0636,58246.0,58245.0,0.73932525]
[1725497169793,0.0636,58246.0,58245.0,0.88015425]
[1725497170014,0.0636,58246.0,58245.0,1.12051725]
[1725497170480,0.0636,58246.0,58245.0,1.12051663]
[1725497170916,0.0636,58246.0,58245.0,1.04348841]
[1725497171366,0.0636,58246.0,58245.0,1.04348787]
[1725497172439,0.0636,58246.0,58245.0,1.0434871]
[1725497172672,0.002,58246.0,58245.0,1.39048932]
[1725497172960,0.002,58246.0,58245.0,1.47398932]
[1725497173130,0.002,58246.0,58245.0,1.48398932]
[1725497173545,0.002,58246.0,58245.0,1.53198932]
[1725497173546,0.001,58246.0,58245.0,1.53198932]
[1725497173759,0.002,58246.0,58245.0,1.56206035]
[1725497174837,0.002,58246.0,58245.0,2.09572733]
[1725497175055,0.001,58246.0,58245.0,2.08172733]
[1725497175277,0.000816,58248.0,58247.0,0.851242]
[1725497175552,0.000816,58248.0,58247.0,1.26581598]
[1725497175782,0.000816,58248.0,58247.0,1.3724552]
[1725497176430,0.000816,58248.0,58247.0,1.3864552]
[1725497176645,0.000816,58248.0,58247.0,1.4024552]
[1725497178692,0.000816,58248.0,58247.0,1.4004552]
[1725497180183,0.000816,58248.0,58247.0,1.40041298]
[1725497180652,0.000816,58248.0,58247.0,1.40641298]
[1725497181058,0.000816,58248.0,58247.0,1.94000543]
[1725497181270,0.000816,58248.0,58247.0,1.39241298]
[1725497181477,0.000816,58248.0,58247.0,1.40641298]
[1725497181913,0.000816,58248.0,58247.0,1.39241298]
[1725497182123,0.000816,58248.0,58247.0,1.40841298]
[1725497182582,1e-08,58248.0,58247.0,2.15974587]
[1725497182821,1e-08,58248.0,58247.0,2.26222394]
[1725497183037,1e-08,58248.0,58247.0,2.33092394]
[1725497183285,1e-08,58248.0,58247.0,2.34492394]
[1725497183495,1e-08,58248.0,58247.0,2.35004904]
[1725497183711,1e-08,58248.0,58247.0,2.33604904]
[1725497184144,1e-08,58248.0,58247.0,2.35004904]
[1725497185038,1e-08,58248.0,58247.0,2.36404612]
[1725497185248,1e-08,58248.0,58247.0,2.36204612]
[1725497185459,1e-08,58248.0,58247.0,2.35004612]
[1725497186384,1e-08,58248.0,58247.0,2.36404612]
[1725497186601,1e-08,58248.0,58247.0,2.36391387]
[1725497188157,1e-08,58248.0,58247.0,1.81432997]
[1725497188346,1e-08,58248.0,58247.0,1.96800737]
[1725497188554,1e-08,58248.0,58247.0,1.81432997]
[1725497189209,1e-08,58248.0,58247.0,1.83039434]
[1725497189428,1e-08,58248.0,58247.0,1.96800152]
[1725497189654,1e-08,58248.0,58247.0,1.98406589]
[1725497189872,1e-08,58248.0,58247.0,1.83039434]
[1725497190596,1e-08,58248.0,58247.0,2.36391387]
[1725497190849,1e-08,58248.0,58247.0,2.54501387]
[1725497191477,1e-08,58248.0,58247.0,2.54498021]
[1725497191982,1e-08,58248.0,58247.0,2.78533521]
[1725497192364,1e-08,58248.0,58247.0,2.25183532]
[1725497192570,1e-08,58248.0,58247.0,2.78533521]
[1725497192783,0.000816,58252.0,58251.0,1.36376422]
[1725497192993,0.000816,58252.0,58251.0,1.9144585]
[1725497193221,0.000816,58252.0,58251.0,1.95086328]
[1725497193425,0.000816,58252.0,58251.0,1.79730472]
[1725497194944,0.000816,58252.0,58251.0,1.82530472]
[1725497196076,0.000816,58252.0,58251.0,1.97879826]
[1725497196493,0.000816,58252.0,58251.0,1.91279826]
[1725497196716,0.000816,58252.0,58251.0,1.75930083]
[1725497197349,0.000816,58252.0,58251.0,1.75930392]
[1725497197784,0.0615,58260.0,58259.0,0.95771022]
[1725497198042,0.0615,58260.0,58259.0,1.41551734]
[1725497198269,0.0615,58260.0,58259.0,1.44886392]
[1725497198955,0.0615,58260.0,58259.0,1.46286392]
[1725497199182,0.0615,58260.0,58259.0,1.47686392]
[1725497200041,0.0615,58260.0,58259.0,1.50244381]
[1725497201117,0.120124,58273.0,58269.0,0.120132]
[1725497201539,0.120124,58273.0,58270.0,0.03331296]
[1725497202200,0.240243,58275.0,58270.0,0.03331296]
[1725497202415,0.120125,58273.0,58270.0,0.03331296]
[1725497203057,0.120125,58273.0,58270.0,0.03531296]
[1725497203264,0.1,58272.0,58270.0,0.03531296]
[1725497204149,0.082,58271.0,58270.0,0.03531296]
[1725497204377,0.144,58271.0,58270.0,0.03531296]
[1725497204582,0.244,58271.0,58270.0,0.03531296]
[1725497205224,0.244,58271.0,58270.0,0.03731296]
[1725497205448,0.244,58271.0,58270.0,0.15744296]
[1725497205683,0.244,58271.0,58270.0,0.15344296]
[1725497205909,0.244,58271.0,58270.0,0.03631296]
[1725497206189,0.244,58271.0,58270.0,0.04031296]
[1725497206402,0.244,58271.0,58270.0,0.03731296]
[1725497206633,0.244,58271.0,58270.0,0.03331296]
[1725497206839,0.244,58271.0,58270.0,0.023]
[1725497207064,0.244,58271.0,58270.0,0.05631296]
[1725497207304,0.244,58271.0,58270.0,0.04331296]
[1725497207538,0.244,58271.0,58270.0,0.04831296]
[1725497207965,0.244,58271.0,58270.0,0.03831296]
[1725497208391,0.244,58271.0,58270.0,0.04131296]
[1725497208610,0.364128,58271.0,58270.0,0.04131296]
[1725497208825,0.364128,58271.0,58270.0,0.03331296]
[1725497209034,0.364128,58271.0,58270.0,0.009]
[1725497209242,0.244,58271.0,58270.0,0.04931296]
[1725497209478,0.364128,58271.0,58270.0,0.04931296]
[1725497214713,1.084896,58271.0,58270.0,0.04931296]
[1725497215166,1.084896,58271.0,58270.0,0.016]
[1725497215855,1.16061498,58271.0,58270.0,0.016]
[1725497216290,1.40087098,58271.0,58270.0,0.016]
[1725497216507,1.42775891,58271.0,58270.0,0.016]
[1725497216964,1.42775891,58271.0,58270.0,0.007]
[1725497217194,1.42775891,58271.0,58270.0,0.00963]
[1725497217413,1.42775891,58271.0,58270.0,0.00263]
[1725497218494,1.42775891,58271.0,58270.0,0.00163]
[1725497218707,1.42775891,58271.0,58270.0,0.00263]
[1725497220727,1.48071211,58271.0,58270.0,0.00263]
[1725497220952,1.48071211,58271.0,58254.0,0.0513544]
[1725497220953,0.1362,58256.0,58254.0,0.0513544]
[1725497221158,0.421189,58254.0,58253.0,0.0513544]
[1725497221410,0.53193422,58253.0,58252.0,0.0513544]
[1725497221618,0.360502,58252.0,58251.0,0.0513544]
[1725497221822,0.425302,58252.0,58251.0,0.0513544]
[1725497222026,0.360514,58250.0,58249.0,0.0051251]
[1725497222235,0.425314,58250.0,58249.0,0.0051251]
[1725497222687,0.665657,58250.0,58249.0,0.0051251]
[1725497222914,0.85269622,58250.0,58249.0,0.0051251]
[1725497223841,0.85269622,58250.0,58249.0,0.0191251]
[1725497224066,0.85269622,58250.0,58249.0,0.0051251]
[1725497224995,1.09303922,58250.0,58249.0,0.0181251]
[1725497225226,1.11603922,58250.0,58249.0,0.0181251]
[1725497225687,1.11603922,58250.0,58249.0,0.0321251]
[1725497225913,1.11603922,58250.0,58249.0,0.0181251]
[1725497226126,1.11603922,58250.0,58249.0,0.0321251]
[1725497226407,1.03563922,58250.0,58249.0,0.0321251]
[1725497228644,1.04253388,58250.0,58249.0,0.0321251]
[1725497230296,1.12463388,58250.0,58249.0,0.0321251]
[1725497230970,1.12463388,58250.0,58249.0,0.0337551]
[1725497231899,1.04253388,58250.0,58249.0,0.0337551]
[1725497234411,0.43220866,58250.0,58249.0,0.0337551]
[1725497234640,0.19186566,58250.0,58249.0,0.0337551]
[1725497235604,0.240339,58252.0,58249.0,0.0337551]
[1725497235605,0.182869,58252.0,58249.0,0.0337551]
[1725497235825,0.44695722,58256.0,58249.0,0.0337551]
[1725497235826,0.120162,58255.0,58249.0,0.0337551]
[1725497236075,0.1,58254.0,58249.0,0.06713226]
[1725497236307,0.1645,58256.0,58249.0,0.06713226]
[1725497236308,0.29167487,58256.0,58249.0,0.06713226]
[1725497236545,0.29167487,58256.0,58250.0,0.065]
[1725497236546,0.10701487,58256.0,58250.0,0.065]
[1725497236840,0.10701487,58256.0,58251.0,0.198568]
[1725497236841,0.1,58256.0,58251.0,0.198568]
[1725497237095,0.1645,58262.0,58252.0,0.240334]
[1725497237319,0.1645,58262.0,58254.0,0.120162]
[1725497237320,0.1,58262.0,58254.0,0.120162]
[1725497237558,0.1,58262.0,58255.0,0.0784]
[1725497237559,0.120149,58261.0,58255.0,0.0784]
[1725497237792,0.120149,58261.0,58255.0,0.11175881]
[1725497238077,0.0645,58265.0,58257.0,0.120156]
[1725497238293,0.0645,58265.0,58258.0,0.065]
[1725497238294,0.120143,58264.0,58258.0,0.065]
[1725497238576,0.31113938,58266.0,58258.0,0.10178244]
[1725497238832,0.31113938,58266.0,58259.0,0.120151]
[1725497238833,0.43127838,58266.0,58259.0,0.120151]
[1725497239060,0.43127838,58266.0,58260.0,0.0791]
[1725497239294,0.43127838,58266.0,58260.0,0.11244353]
[1725497239522,0.31113938,58266.0,58260.0,0.11244353]
[1725497239986,0.31113938,58266.0,58260.0,0.23259353]
[1725497240232,0.1,58265.0,58260.0,0.23259353]
[1725497240465,0.31113938,58266.0,58261.0,0.240297]
[1725497240715,0.000815,58270.0,58263.0,0.10663922]
[1725497240954,0.000815,58270.0,58267.0,0.120136]
[1725497241439,0.000815,58270.0,58268.0,0.03331907]
[1725497241671,0.000815,58270.0,58268.0,0.15345307]
[1725497242107,0.000815,58270.0,58268.0,0.03331907]
[1725497242595,0.000815,58270.0,58265.0,0.12357122]
[1725497242827,0.000815,58270.0,58269.0,0.03331601]
[1725497243055,0.000815,58270.0,58268.0,0.013]
[1725497243276,0.000815,58270.0,58269.0,0.03331601]
[1725497243490,0.000815,58270.0,58268.0,0.013]
[1725497243726,0.000815,58270.0,58269.0,0.03331601]
[1725497244183,0.000815,58270.0,58266.0,0.120137]
[1725497244415,0.000815,58270.0,58269.0,0.04531601]
[1725497244640,0.000815,58270.0,58269.0,0.372396]
[1725497244886,0.000815,58270.0,58269.0,0.16544801]
[1725497245397,0.000815,58270.0,58269.0,0.16644801]
[1725497247510,0.000815,58270.0,58269.0,0.17844801]
[1725497247741,0.000815,58270.0,58269.0,0.05831601]
[1725497250354,0.146815,58270.0,58269.0,0.05831601]
[1725497250604,1.21639718,58270.0,58269.0,0.05831601]
[1725497250827,1.21639718,58270.0,58269.0,0.025]
[1725497251306,1.45665718,58270.0,58269.0,0.025]
[1725497252001,1.46373747,58270.0,58269.0,0.025]
[1725497253136,0.120167,58252.0,58251.0,0.05110151]
[1725497253385,0.120167,58252.0,58250.0,0.13350151]
[1725497253605,0.120167,58252.0,58251.0,0.03337105]
[1725497254077,0.26632313,58262.0,58251.0,0.03337105]
[1725497254078,0.100815,58270.0,58255.0,0.08]
[1725497254331,0.100815,58270.0,58259.0,0.08]
[1725497254332,0.240269,58268.0,58259.0,0.08]
[1725497254574,0.000815,58270.0,58263.0,0.08]
[1725497254814,0.000815,58270.0,58265.0,0.26632313]
[1725497255059,0.000815,58270.0,58269.0,0.001]
[1725497255278,0.000815,58270.0,58266.0,0.00343208]
[1725497255279,0.000815,58270.0,58266.0,0.03675726]
[1725497255754,0.000815,58270.0,58266.0,0.00343208]
[1725497256239,0.000815,58270.0,58267.0,0.03332213]
[1725497256460,0.000815,58270.0,58268.0,0.00343206]
[1725497256681,0.000815,58270.0,58267.0,0.00343208]
[1725497256902,0.000815,58270.0,58268.0,0.03331907]
[1725497257131,0.000815,58270.0,58269.0,0.00343192]
[1725497257470,0.000815,58270.0,58269.0,0.14343192]
[1725497257693,0.000815,58270.0,58269.0,0.17674793]
[1725497258817,0.000815,58270.0,58269.0,0.18074793]
[1725497260132,0.000815,58270.0,58269.0,0.18374793]
[1725497263598,0.000815,58270.0,58269.0,0.18031601]
[1725497266815,0.000815,58270.0,58269.0,0.18194601]
[1725497267535,0.000815,58270.0,58269.0,0.30550999]
[1725497267990,0.000815,58270.0,58269.0,0.18537799]
[1725497269357,0.000815,58270.0,58269.0,0.30550999]
[1725497272421,0.000815,58270.0,58269.0,0.30207801]
[1725497273332,0.000815,58270.0,58269.0,0.24207801]
[1725497273621,0.000815,58270.0,58269.0,0.12194601]
[1725497273846,0.000815,58270.0,58269.0,0.24207801]
[1725497274302,0.000815,58270.0,58269.0,0.72260601]
[1725497274529,1e-08,58270.0,58269.0,1.44647099]
[1725497274770,1e-08,58270.0,58269.0,1.57422671]
[1725497274997,1e-08,58270.0,58269.0,1.44647099]
[1725497276179,1e-08,58270.0,58269.0,1.43947099]
[1725497276400,1e-08,58270.0,58269.0,1.46447099]
[1725497276631,1e-08,58270.0,58269.0,1.45047099]
[1725497277062,1e-08,58270.0,58269.0,1.43947099]
[1725497277305,1e-08,58270.0,58269.0,1.46747099]
[1725497277752,1e-08,58270.0,58269.0,1.70773499]
[1725497277963,1e-08,58270.0,58269.0,1.69167364]
[1725497278406,1e-08,58270.0,58269.0,1.70773499]
[1725497278634,1e-08,58270.0,58269.0,1.69367364]
[1725497278855,1e-08,58270.0,58269.0,1.70773499]
[1725497279081,1e-08,58270.0,58269.0,1.81959392]
[1725497279519,1e-08,58270.0,58269.0,1.69367364]